[Event "*** Titled Tuesday Blitz"]
[Site "Chess.com"]
[Date "2020.11.10"]
[Round "10"]
[White "Unknown_IM"]
[Black "Aygehovit1992"]
[Result "0-1"]
[WhiteElo "2403"]
[BlackElo "2684"]
[TimeControl "180+1"]
[EndTime "12:04:08 PST"]
[Termination "Aygehovit1992 won on time"]

1. e4 {[%clk 0:02:55.3]} 1... c5 {[%clk 0:02:44.1]} 2. Nf3 {[%clk 0:02:54.7]}
2... d6 {[%clk 0:02:43.1]} 3. c3 {[%clk 0:02:54.3]} 3... Nf6 {[%clk 0:02:42.8]}
4. Be2 {[%clk 0:02:53.7]} 4... g6 {[%clk 0:02:42.3]} 5. O-O {[%clk 0:02:52.5]}
5... Bg7 {[%clk 0:02:42.3]} 6. Bb5+ {[%clk 0:02:52]} 6... Nbd7 {[%clk
0:02:41.1]} 7. Re1 {[%clk 0:02:51.1]} 7... O-O {[%clk 0:02:40.9]} 8. d4 {[%clk
0:02:50.7]} 8... a6 {[%clk 0:02:41.3]} 9. Bd3 {[%clk 0:02:49.2]} 9... Qc7 {[%clk
0:02:36.8]} 10. a4 {[%clk 0:02:46.1]} 10... b6 {[%clk 0:02:36]} 11. d5 {[%clk
0:02:42.5]} 11... c4 {[%clk 0:02:33.1]} 12. Bc2 {[%clk 0:02:41.7]} 12... Nc5
{[%clk 0:02:33.3]} 13. Bf4 {[%clk 0:02:38]} 13... Bd7 {[%clk 0:02:29.7]} 14. h3
{[%clk 0:02:30.5]} 14... b5 {[%clk 0:02:21.3]} 15. e5 {[%clk 0:02:21.8]} 15...
Nh5 {[%clk 0:02:01.9]} 16. Bh2 {[%clk 0:02:18.7]} 16... dxe5 {[%clk 0:01:50.4]}
17. Nxe5 {[%clk 0:02:17.1]} 17... Qb7 {[%clk 0:01:50.2]} 18. Qf3 {[%clk
0:01:44.7]} 18... bxa4 {[%clk 0:01:42]} 19. Nxc4 {[%clk 0:01:43.4]} 19... Nf6
{[%clk 0:01:29.3]} 20. Rxe7 {[%clk 0:01:26.1]} 20... Nxd5 {[%clk 0:01:28.3]} 21.
Re1 {[%clk 0:01:13.7]} 21... Rfe8 {[%clk 0:01:24.9]} 22. Nbd2 {[%clk 0:01:12.5]}
22... Rxe1+ {[%clk 0:01:21.2]} 23. Rxe1 {[%clk 0:01:11.7]} 23... Be6 {[%clk
0:01:13]} 24. Ne4 {[%clk 0:01:03.6]} 24... Qa7 {[%clk 0:00:49]} 25. Ng5 {[%clk
0:00:51.1]} 25... Rd8 {[%clk 0:00:38.2]} 26. Be5 {[%clk 0:00:29.6]} 26... Bxe5
{[%clk 0:00:35.5]} 27. Nxe5 {[%clk 0:00:30.5]} 27... f6 {[%clk 0:00:31.1]} 28.
Nxe6 {[%clk 0:00:29.9]} 28... Nxe6 {[%clk 0:00:32]} 29. Nc6 {[%clk 0:00:24.7]}
29... Ng5 {[%clk 0:00:10.1]} 30. Nxa7 {[%clk 0:00:22.5]} 30... Nxf3+ {[%clk
0:00:10.2]} 31. gxf3 {[%clk 0:00:23.4]} 31... Rb8 {[%clk 0:00:10.7]} 32. Bxa4
{[%clk 0:00:18.9]} 32... Rxb2 {[%clk 0:00:10.6]} 33. Nc6 {[%clk 0:00:19]} 33...
Nxc3 {[%clk 0:00:09.4]} 34. Ne7+ {[%clk 0:00:15.3]} 34... Kg7 {[%clk 0:00:09.3]}
35. Bc6 {[%clk 0:00:14.7]} 35... a5 {[%clk 0:00:09]} 36. Nd5 {[%clk 0:00:14.9]}
36... Ne2+ {[%clk 0:00:09.3]} 37. Kg2 {[%clk 0:00:14.4]} 37... Nd4 {[%clk
0:00:10.2]} 38. Bd7 {[%clk 0:00:12.9]} 38... Rb7 {[%clk 0:00:06.7]} 39. Re7+
{[%clk 0:00:12.3]} 39... Kf8 {[%clk 0:00:06.1]} 40. Rxh7 {[%clk 0:00:12.4]}
40... Ne2 {[%clk 0:00:04.3]} 41. Nxf6 {[%clk 0:00:08.4]} 41... Nf4+ {[%clk
0:00:04.7]} 42. Kg3 {[%clk 0:00:08.5]} 42... Ne2+ {[%clk 0:00:05.2]} 43. Kh2
{[%clk 0:00:08.2]} 43... a4 {[%clk 0:00:05.5]} 44. Bxa4 {[%clk 0:00:05.3]} 44...
Rb2 {[%clk 0:00:05.5]} 45. Rh8+ {[%clk 0:00:04.3]} 45... Kg7 {[%clk 0:00:05.5]}
46. Ng4 {[%clk 0:00:05.2]} 46... Kxh8 {[%clk 0:00:05.1]} 47. Ne5 {[%clk
0:00:05]} 47... Kg7 {[%clk 0:00:05]} 48. Be8 {[%clk 0:00:02.6]} 48... g5 {[%clk
0:00:03.8]} 49. Ng4 {[%clk 0:00:03]} 49... Nf4 {[%clk 0:00:03.4]} 50. Kg3 {[%clk
0:00:03.9]} 50... Rb1 {[%clk 0:00:03.4]} 51. h4 {[%clk 0:00:04]} 51... Ne2+
{[%clk 0:00:03.3]} 52. Kh3 {[%clk 0:00:03.8]} 52... Rh1+ {[%clk 0:00:03.1]} 53.
Nh2 {[%clk 0:00:04.3]} 53... gxh4 {[%clk 0:00:03.5]} 54. Bd7 {[%clk 0:00:04]}
54... Nf4+ {[%clk 0:00:02.6]} 55. Kg4 {[%clk 0:00:04.2]} 55... Rxh2 {[%clk
0:00:02.5]} 56. Kxf4 {[%clk 0:00:04.5]} 56... Rxf2 {[%clk 0:00:02.5]} 57. Kg4
{[%clk 0:00:04.9]} 57... Rh2 {[%clk 0:00:02.8]} 58. Kf4 {[%clk 0:00:04.5]} 58...
Kf6 {[%clk 0:00:03.7]} 59. Kg4 {[%clk 0:00:04.8]} 59... Rh1 {[%clk 0:00:04.5]}
60. Kf4 {[%clk 0:00:04.5]} 60... Rh2 {[%clk 0:00:04]} 61. Kg4 {[%clk 0:00:04.7]}
61... Rd2 {[%clk 0:00:04.6]} 62. Bc8 {[%clk 0:00:04]} 62... Rd4+ {[%clk
0:00:05.5]} 63. Kh3 {[%clk 0:00:04]} 63... Kg5 {[%clk 0:00:05.1]} 64. Bg4 {[%clk
0:00:04.6]} 64... Rf4 {[%clk 0:00:05.7]} 65. Kg2 {[%clk 0:00:04.5]} 65... Rb4
{[%clk 0:00:05.9]} 66. Kh3 {[%clk 0:00:05.4]} 66... Rb2 {[%clk 0:00:06.3]} 67.
Bc8 {[%clk 0:00:04.4]} 67... Rb1 {[%clk 0:00:05.3]} 68. Bg4 {[%clk 0:00:04.1]}
68... Rg1 {[%clk 0:00:05.2]} 69. Kh2 {[%clk 0:00:03.9]} 69... Rg3 {[%clk
0:00:06.1]} 70. Kh1 {[%clk 0:00:03]} 70... h3 {[%clk 0:00:05.8]} 71. Kh2 {[%clk
0:00:03.5]} 71... Kh4 {[%clk 0:00:06.2]} 72. Kh1 {[%clk 0:00:02.6]} 72... Rg2
{[%clk 0:00:05.6]} 0-1

[Event "*** Titled Tuesday Blitz"]
[Site "Chess.com"]
[Date "2020.11.10"]
[Round "10"]
[White "AlexandraBotez"]
[Black "Paladin61"]
[Result "1/2-1/2"]
[WhiteElo "2137"]
[BlackElo "2509"]
[TimeControl "180+1"]
[EndTime "12:04:25 PST"]
[Termination "Game drawn by repetition"]

1. d4 {[%clk 0:02:58.5]} 1... Nf6 {[%clk 0:02:59.6]} 2. c4 {[%clk 0:02:58.4]}
2... g6 {[%clk 0:02:58.7]} 3. Nc3 {[%clk 0:02:56.4]} 3... Bg7 {[%clk 0:02:58.6]}
4. f3 {[%clk 0:02:56.2]} 4... d6 {[%clk 0:02:55.4]} 5. e4 {[%clk 0:02:55.7]}
5... O-O {[%clk 0:02:55.2]} 6. Be3 {[%clk 0:02:53.2]} 6... c5 {[%clk 0:02:54.8]}
7. Nge2 {[%clk 0:02:50.7]} 7... Nc6 {[%clk 0:02:53.6]} 8. Qd2 {[%clk 0:02:50.8]}
8... Qa5 {[%clk 0:02:53]} 9. g3 {[%clk 0:02:24.7]} 9... e5 {[%clk 0:02:49]} 10.
d5 {[%clk 0:02:13.4]} 10... Nd4 {[%clk 0:02:47.6]} 11. Bg2 {[%clk 0:02:12.7]}
11... Nb3 {[%clk 0:02:39.8]} 12. axb3 {[%clk 0:01:46.4]} 12... Qxa1+ {[%clk
0:02:38.4]} 13. Nc1 {[%clk 0:01:47.1]} 13... a6 {[%clk 0:02:30.8]} 14. O-O
{[%clk 0:01:42.7]} 14... Qa5 {[%clk 0:02:28.8]} 15. Nd3 {[%clk 0:01:32.7]} 15...
b5 {[%clk 0:02:28.8]} 16. h3 {[%clk 0:01:25.9]} 16... Nh5 {[%clk 0:02:23]} 17.
g4 {[%clk 0:01:19.2]} 17... Nf4 {[%clk 0:01:21.7]} 18. Nxf4 {[%clk 0:01:17.8]}
18... exf4 {[%clk 0:01:22.6]} 19. Bxf4 {[%clk 0:01:18.5]} 19... Qb6 {[%clk
0:01:17.6]} 20. Kh2 {[%clk 0:01:11.8]} 20... Rb8 {[%clk 0:01:08.9]} 21. cxb5
{[%clk 0:01:08.7]} 21... axb5 {[%clk 0:01:06.8]} 22. Ra1 {[%clk 0:01:03.4]}
22... Bd7 {[%clk 0:01:04.7]} 23. Bf1 {[%clk 0:01:03.1]} 23... Ra8 {[%clk
0:01:01.6]} 24. Re1 {[%clk 0:00:59.1]} 24... Rfe8 {[%clk 0:00:42.5]} 25. Bd3
{[%clk 0:00:56.8]} 25... Reb8 {[%clk 0:00:27.4]} 26. Be3 {[%clk 0:00:42.6]}
26... Qd8 {[%clk 0:00:18.4]} 27. Bg5 {[%clk 0:00:41.5]} 27... Qb6 {[%clk
0:00:16.5]} 28. Be3 {[%clk 0:00:41.3]} 28... Qa5 {[%clk 0:00:16.3]} 29. Bf4
{[%clk 0:00:34.3]} 29... c4 {[%clk 0:00:13.6]} 30. Bc2 {[%clk 0:00:31.7]} 30...
Qb4 {[%clk 0:00:12.1]} 31. bxc4 {[%clk 0:00:19.3]} 31... bxc4 {[%clk 0:00:12.3]}
32. Re2 {[%clk 0:00:16.1]} 32... Qxb2 {[%clk 0:00:10.7]} 33. Nd1 {[%clk
0:00:15.7]} 33... Qb6 {[%clk 0:00:09.7]} 34. Be3 {[%clk 0:00:12.9]} 34... Qc7
{[%clk 0:00:09.5]} 35. Nf2 {[%clk 0:00:11.8]} 35... c3 {[%clk 0:00:09.2]} 36.
Qd1 {[%clk 0:00:10.9]} 36... Rb2 {[%clk 0:00:09]} 37. Bf4 {[%clk 0:00:08.1]}
37... Rba2 {[%clk 0:00:08.9]} 38. Nd3 {[%clk 0:00:08.3]} 38... Ra1 {[%clk
0:00:08.8]} 39. Nc1 {[%clk 0:00:07.9]} 39... Bb5 {[%clk 0:00:08.5]} 40. Re1
{[%clk 0:00:07.6]} 40... Qc5 {[%clk 0:00:08.3]} 41. Be3 {[%clk 0:00:07.5]} 41...
Qb4 {[%clk 0:00:08.2]} 42. Rh1 {[%clk 0:00:04.8]} 42... Qb2 {[%clk 0:00:07.1]}
43. Rg1 {[%clk 0:00:03.7]} 43... Qb4 {[%clk 0:00:06.6]} 44. Rg2 {[%clk 0:00:04]}
44... Qa5 {[%clk 0:00:06.6]} 45. Bf4 {[%clk 0:00:04.4]} 45... Qd8 {[%clk
0:00:06.6]} 46. Be3 {[%clk 0:00:04.8]} 46... Qe7 {[%clk 0:00:06.6]} 47. Qh1
{[%clk 0:00:04.6]} 47... R1a3 {[%clk 0:00:05.3]} 48. Rg1 {[%clk 0:00:04.8]}
48... Ra1 {[%clk 0:00:05.3]} 49. Qg2 {[%clk 0:00:05.1]} 49... Ba6 {[%clk
0:00:05.2]} 50. Qf2 {[%clk 0:00:05.5]} 50... Rb8 {[%clk 0:00:05.3]} 51. Qg2
{[%clk 0:00:05.6]} 51... Rb2 {[%clk 0:00:05.2]} 52. Qf2 {[%clk 0:00:04.1]} 52...
Bc8 {[%clk 0:00:04.9]} 53. Re1 {[%clk 0:00:04.2]} 53... Ra8 {[%clk 0:00:04.3]}
54. Re2 {[%clk 0:00:04.4]} 54... Bd7 {[%clk 0:00:04.5]} 55. Nd3 {[%clk
0:00:04.8]} 55... Rba2 {[%clk 0:00:03.6]} 56. Nc1 {[%clk 0:00:05]} 56... Ra1
{[%clk 0:00:03.4]} 57. h4 {[%clk 0:00:05.4]} 57... Bb5 {[%clk 0:00:03.3]} 58.
Bg5 {[%clk 0:00:05.6]} 58... Qd7 {[%clk 0:00:03.3]} 59. Re1 {[%clk 0:00:05.9]}
59... Bc4 {[%clk 0:00:03.6]} 60. Be3 {[%clk 0:00:06.1]} 60... Qb5 {[%clk
0:00:03.8]} 61. g5 {[%clk 0:00:04.9]} 61... R1a2 {[%clk 0:00:03.8]} 62. f4
{[%clk 0:00:03.8]} 62... Rxc2 {[%clk 0:00:03.8]} 63. Qxc2 {[%clk 0:00:03.1]}
63... Qb2 {[%clk 0:00:04.7]} 64. Qg2 {[%clk 0:00:02]} 64... c2 {[%clk
0:00:04.4]} 65. Qf2 {[%clk 0:00:01.7]} 65... Qc3 {[%clk 0:00:04.5]} 66. Kg3
{[%clk 0:00:01.7]} 66... Ra1 {[%clk 0:00:03.7]} 67. Kf3 {[%clk 0:00:02.3]} 67...
Ra8 {[%clk 0:00:03.4]} 68. Qd2 {[%clk 0:00:02.9]} 68... Qxd2 {[%clk 0:00:02.7]}
69. Bxd2 {[%clk 0:00:03.2]} 69... Bd4 {[%clk 0:00:02.7]} 70. Be3 {[%clk
0:00:02.7]} 70... Bc3 {[%clk 0:00:02.7]} 71. Rg1 {[%clk 0:00:02.4]} 71... Ra1
{[%clk 0:00:02.7]} 72. Kf2 {[%clk 0:00:02.4]} 72... Kf8 {[%clk 0:00:02.6]} 73.
Rh1 {[%clk 0:00:02.9]} 73... Ke8 {[%clk 0:00:02.5]} 74. Rg1 {[%clk 0:00:03.2]}
74... Kd7 {[%clk 0:00:02.9]} 75. f5 {[%clk 0:00:03.7]} 75... Ke7 {[%clk
0:00:03.1]} 76. f6+ {[%clk 0:00:03.9]} 76... Kd7 {[%clk 0:00:03.5]} 77. Rh1
{[%clk 0:00:04]} 77... Kd8 {[%clk 0:00:02]} 78. h5 {[%clk 0:00:04.5]} 78... Kd7
{[%clk 0:00:02.3]} 79. hxg6 {[%clk 0:00:04.6]} 79... hxg6 {[%clk 0:00:03.2]} 80.
Rh7 {[%clk 0:00:04.8]} 80... Ke8 {[%clk 0:00:03.6]} 81. Rh8+ {[%clk 0:00:04.9]}
81... Kd7 {[%clk 0:00:04]} 82. Rh7 {[%clk 0:00:05.8]} 82... Ke8 {[%clk
0:00:04.3]} 83. Rh8+ {[%clk 0:00:06.2]} 83... Kd7 {[%clk 0:00:04.5]} 84. Rh7
{[%clk 0:00:06.8]} 1/2-1/2

[Event "*** Titled Tuesday Blitz"]
[Site "Chess.com"]
[Date "2020.11.10"]
[Round "10"]
[White "tteshan"]
[Black "WPWPWP-2015"]
[Result "1-0"]
[WhiteElo "2377"]
[BlackElo "2505"]
[TimeControl "180+1"]
[EndTime "12:04:49 PST"]
[Termination "tteshan won on time"]

1. e4 {[%clk 0:03:00.9]} 1... c5 {[%clk 0:02:57.9]} 2. c3 {[%clk 0:03:00.7]}
2... Nf6 {[%clk 0:02:55.5]} 3. e5 {[%clk 0:03:00.5]} 3... Nd5 {[%clk 0:02:55.4]}
4. Nf3 {[%clk 0:03:01.1]} 4... d6 {[%clk 0:02:54.7]} 5. d4 {[%clk 0:03:00.4]}
5... cxd4 {[%clk 0:02:54]} 6. cxd4 {[%clk 0:03:01.3]} 6... Nc6 {[%clk
0:02:53.5]} 7. Bc4 {[%clk 0:02:59.2]} 7... e6 {[%clk 0:02:53.7]} 8. Qe2 {[%clk
0:02:58.8]} 8... Be7 {[%clk 0:02:53]} 9. O-O {[%clk 0:02:58.9]} 9... h6 {[%clk
0:02:48]} 10. exd6 {[%clk 0:02:58.7]} 10... Qxd6 {[%clk 0:02:47.1]} 11. Nc3
{[%clk 0:02:54.6]} 11... Nxc3 {[%clk 0:02:47]} 12. bxc3 {[%clk 0:02:55.1]} 12...
b6 {[%clk 0:02:46.9]} 13. Re1 {[%clk 0:02:29.5]} 13... Na5 {[%clk 0:02:42.9]}
14. Bb5+ {[%clk 0:02:27.1]} 14... Bd7 {[%clk 0:02:41.6]} 15. Bd3 {[%clk
0:02:24.4]} 15... Bc6 {[%clk 0:02:35.4]} 16. Ne5 {[%clk 0:02:20.8]} 16... Bd5
{[%clk 0:02:19.7]} 17. Bf4 {[%clk 0:02:03.8]} 17... Qd8 {[%clk 0:01:12.6]} 18.
c4 {[%clk 0:02:01.5]} 18... Bc6 {[%clk 0:00:53.5]} 19. Nxf7 {[%clk 0:01:21.8]}
19... Kxf7 {[%clk 0:00:54.4]} 20. Qxe6+ {[%clk 0:01:21.2]} 20... Kf8 {[%clk
0:00:55.1]} 21. Bg6 {[%clk 0:01:01.8]} 21... Be8 {[%clk 0:00:54.9]} 22. Qf5+
{[%clk 0:00:39]} 22... Kg8 {[%clk 0:00:54.9]} 23. Bxe8 {[%clk 0:00:27.9]} 23...
Qxe8 {[%clk 0:00:38.2]} 24. Bd6 {[%clk 0:00:27]} 24... Qf7 {[%clk 0:00:13.3]}
25. Qxf7+ {[%clk 0:00:24]} 25... Kxf7 {[%clk 0:00:14.2]} 26. Rxe7+ {[%clk
0:00:24.1]} 26... Kg6 {[%clk 0:00:12.6]} 27. Rae1 {[%clk 0:00:20.6]} 27... Nxc4
{[%clk 0:00:11.9]} 28. R1e6+ {[%clk 0:00:20.1]} 28... Kh7 {[%clk 0:00:12.1]} 29.
Be5 {[%clk 0:00:13.2]} 29... Nxe5 {[%clk 0:00:11.6]} 30. dxe5 {[%clk 0:00:13.1]}
30... Rhd8 {[%clk 0:00:09.1]} 31. h4 {[%clk 0:00:13.4]} 31... Rd4 {[%clk
0:00:07.6]} 32. g3 {[%clk 0:00:11.8]} 32... b5 {[%clk 0:00:07.3]} 33. Rb7 {[%clk
0:00:11.5]} 33... a6 {[%clk 0:00:04.8]} 34. Ree7 {[%clk 0:00:11.9]} 34... Rg8
{[%clk 0:00:04.7]} 35. Kg2 {[%clk 0:00:12]} 35... Ra4 {[%clk 0:00:04.8]} 36. e6
{[%clk 0:00:09.5]} 36... b4 {[%clk 0:00:04.9]} 37. Red7 {[%clk 0:00:07.7]} 37...
Rxa2 {[%clk 0:00:04.2]} 38. Rxb4 {[%clk 0:00:07]} 38... Re2 {[%clk 0:00:04.2]}
39. Rb6 {[%clk 0:00:04.3]} 39... Rf8 {[%clk 0:00:03.6]} 40. Rf7 {[%clk
0:00:03.4]} 40... Re8 {[%clk 0:00:02.8]} 41. Rxa6 {[%clk 0:00:01.6]} 41... R2xe6
{[%clk 0:00:02.2]} 42. Raa7 {[%clk 0:00:02.1]} 42... Rg8 {[%clk 0:00:01.4]} 43.
Kh3 {[%clk 0:00:01.7]} 43... Kh8 {[%clk 0:00:02.3]} 44. f4 {[%clk 0:00:02.2]}
44... Rg6 {[%clk 0:00:03]} 45. h5 {[%clk 0:00:02.2]} 45... Rd6 {[%clk
0:00:03.9]} 46. Kh4 {[%clk 0:00:02.6]} 46... Rd5 {[%clk 0:00:04.8]} 47. Kg4
{[%clk 0:00:02.9]} 47... Rd1 {[%clk 0:00:05.5]} 48. Rfe7 {[%clk 0:00:03.2]}
48... Rd4 {[%clk 0:00:06.4]} 49. Kf3 {[%clk 0:00:03.5]} 49... Rd3+ {[%clk
0:00:06.4]} 50. Ke4 {[%clk 0:00:04]} 50... Rxg3 {[%clk 0:00:06.2]} 51. Kf5
{[%clk 0:00:04.2]} 51... Rg2 {[%clk 0:00:05.7]} 52. Ke4 {[%clk 0:00:04.1]} 52...
Re2+ {[%clk 0:00:05]} 53. Kf3 {[%clk 0:00:04.1]} 53... Rh2 {[%clk 0:00:05.5]}
54. Re5 {[%clk 0:00:03.6]} 54... Rh1 {[%clk 0:00:05.3]} 55. Rb5 {[%clk
0:00:03.1]} 55... Rg1 {[%clk 0:00:05.2]} 56. f5 {[%clk 0:00:03]} 56... Rf8
{[%clk 0:00:05.4]} 57. Kf4 {[%clk 0:00:03]} 57... Rf1+ {[%clk 0:00:05]} 58. Kg4
{[%clk 0:00:02.9]} 58... Rg1+ {[%clk 0:00:04.6]} 59. Kh4 {[%clk 0:00:03.3]}
59... Rg5 {[%clk 0:00:03.9]} 60. Rab7 {[%clk 0:00:02.2]} 60... Rgxf5 {[%clk
0:00:03.4]} 61. Rxf5 {[%clk 0:00:02.8]} 61... Rxf5 {[%clk 0:00:03.6]} 62. Rb8+
{[%clk 0:00:03.4]} 62... Kh7 {[%clk 0:00:04.1]} 63. Rb7 {[%clk 0:00:04.1]} 63...
Rf4+ {[%clk 0:00:04.3]} 64. Kh3 {[%clk 0:00:04.3]} 64... Ra4 {[%clk 0:00:05.2]}
65. Rc7 {[%clk 0:00:04.3]} 65... Rb4 {[%clk 0:00:05.7]} 66. Rd7 {[%clk
0:00:04.6]} 66... Rc4 {[%clk 0:00:06]} 67. Re7 {[%clk 0:00:04.9]} 67... Rb4
{[%clk 0:00:06.1]} 68. Ra7 {[%clk 0:00:05.2]} 68... Rb5 {[%clk 0:00:06.4]} 69.
Kg4 {[%clk 0:00:05.2]} 69... Rc5 {[%clk 0:00:06.4]} 70. Kh4 {[%clk 0:00:05.5]}
70... Rg5 {[%clk 0:00:06.6]} 71. Rb7 {[%clk 0:00:05.1]} 71... Rg1 {[%clk
0:00:07.1]} 72. Ra7 {[%clk 0:00:05.2]} 72... Rh1+ {[%clk 0:00:07.7]} 73. Kg4
{[%clk 0:00:05.8]} 73... Rb1 {[%clk 0:00:08.3]} 74. Kh4 {[%clk 0:00:06.1]} 74...
Rb4+ {[%clk 0:00:08.4]} 75. Kh3 {[%clk 0:00:06.4]} 75... Re4 {[%clk 0:00:07.9]}
76. Kg3 {[%clk 0:00:06.5]} 76... Kg8 {[%clk 0:00:08.1]} 77. Rb7 {[%clk
0:00:06.1]} 77... Rd4 {[%clk 0:00:08]} 78. Ra7 {[%clk 0:00:06.3]} 78... Re4
{[%clk 0:00:08.2]} 79. Rb7 {[%clk 0:00:06.5]} 79... Kf8 {[%clk 0:00:08.7]} 80.
Ra7 {[%clk 0:00:06.7]} 80... Re7 {[%clk 0:00:08.1]} 81. Ra8+ {[%clk 0:00:04.3]}
81... Kf7 {[%clk 0:00:08.4]} 82. Ra6 {[%clk 0:00:04.4]} 82... Re6 {[%clk
0:00:08.8]} 83. Ra7+ {[%clk 0:00:04.8]} 83... Kf6 {[%clk 0:00:09.2]} 84. Kg4
{[%clk 0:00:04]} 84... Re4+ {[%clk 0:00:09]} 85. Kh3 {[%clk 0:00:03.7]} 85...
Re7 {[%clk 0:00:06.8]} 86. Ra5 {[%clk 0:00:03.7]} 86... Re5 {[%clk 0:00:06.1]}
87. Ra6+ {[%clk 0:00:03.6]} 87... Kf7 {[%clk 0:00:03.2]} 88. Ra7+ {[%clk
0:00:03.8]} 88... Kg8 {[%clk 0:00:02.9]} 89. Ra8+ {[%clk 0:00:03.9]} 89... Kf7
{[%clk 0:00:02.5]} 90. Kh4 {[%clk 0:00:04.5]} 1-0

[Event "*** Titled Tuesday Blitz"]
[Site "Chess.com"]
[Date "2020.11.10"]
[Round "10"]
[White "Harsha_Bharathakoti"]
[Black "Semetey"]
[Result "1/2-1/2"]
[WhiteElo "2774"]
[BlackElo "2585"]
[TimeControl "180+1"]
[EndTime "12:04:53 PST"]
[Termination "Game drawn by repetition"]

1. d4 {[%clk 0:03:00.9]} 1... Nf6 {[%clk 0:03:00.9]} 2. Nf3 {[%clk 0:02:58.3]}
2... g6 {[%clk 0:03:01.8]} 3. Nc3 {[%clk 0:02:55.7]} 3... Bg7 {[%clk 0:03:02.7]}
4. e4 {[%clk 0:02:54.7]} 4... d5 {[%clk 0:03:03.2]} 5. exd5 {[%clk 0:02:34.5]}
5... Nxd5 {[%clk 0:03:01.4]} 6. Nxd5 {[%clk 0:02:33.1]} 6... Qxd5 {[%clk
0:03:02.3]} 7. c4 {[%clk 0:02:33.6]} 7... Qe6+ {[%clk 0:03:02.4]} 8. Be2 {[%clk
0:02:31.4]} 8... O-O {[%clk 0:03:01.9]} 9. O-O {[%clk 0:02:31.4]} 9... Qb6
{[%clk 0:02:58.2]} 10. c5 {[%clk 0:02:18.6]} 10... Qc6 {[%clk 0:02:57.4]} 11.
Bg5 {[%clk 0:02:15.1]} 11... Re8 {[%clk 0:02:55.5]} 12. Re1 {[%clk 0:01:55.9]}
12... Be6 {[%clk 0:02:53.7]} 13. b4 {[%clk 0:01:37.2]} 13... a6 {[%clk 0:02:53]}
14. a4 {[%clk 0:01:37.4]} 14... Nd7 {[%clk 0:02:44.2]} 15. Qc2 {[%clk
0:01:32.2]} 15... b5 {[%clk 0:02:23.9]} 16. Nd2 {[%clk 0:01:18.2]} 16... Bd5
{[%clk 0:02:17.9]} 17. Be3 {[%clk 0:01:06.2]} 17... Bxg2 {[%clk 0:02:15.7]} 18.
axb5 {[%clk 0:01:02.5]} 18... axb5 {[%clk 0:02:15.2]} 19. Bxb5 {[%clk
0:01:02.6]} 19... Qxb5 {[%clk 0:02:12.9]} 20. Kxg2 {[%clk 0:01:03.5]} 20... Nf6
{[%clk 0:02:05.2]} 21. Qc4 {[%clk 0:00:58.6]} 21... Qc6+ {[%clk 0:02:02.3]} 22.
f3 {[%clk 0:00:58.6]} 22... Nd5 {[%clk 0:01:57.4]} 23. Bf2 {[%clk 0:00:54.5]}
23... Nf4+ {[%clk 0:01:44.9]} 24. Kh1 {[%clk 0:00:51]} 24... Qd7 {[%clk
0:01:27.1]} 25. Be3 {[%clk 0:00:42.3]} 25... Nd5 {[%clk 0:01:25.2]} 26. Bf2
{[%clk 0:00:41]} 26... c6 {[%clk 0:01:24.8]} 27. Ne4 {[%clk 0:00:38.4]} 27...
Qh3 {[%clk 0:01:16.2]} 28. Ng3 {[%clk 0:00:34.3]} 28... Rab8 {[%clk 0:01:07.2]}
29. Rab1 {[%clk 0:00:31.8]} 29... h5 {[%clk 0:00:57.8]} 30. Qf1 {[%clk
0:00:27.2]} 30... Qd7 {[%clk 0:00:56.1]} 31. Qc4 {[%clk 0:00:23.6]} 31... h4
{[%clk 0:00:55.7]} 32. Ne4 {[%clk 0:00:22.8]} 32... Nf4 {[%clk 0:00:52.1]} 33.
Qf1 {[%clk 0:00:18.1]} 33... Red8 {[%clk 0:00:42.2]} 34. Bxh4 {[%clk 0:00:18.2]}
34... Bxd4 {[%clk 0:00:39.9]} 35. Bg3 {[%clk 0:00:16.6]} 35... Qf5 {[%clk
0:00:34.6]} 36. Red1 {[%clk 0:00:11.8]} 36... e5 {[%clk 0:00:32.4]} 37. b5
{[%clk 0:00:09.3]} 37... cxb5 {[%clk 0:00:30.8]} 38. Rxb5 {[%clk 0:00:10.2]}
38... Rxb5 {[%clk 0:00:30.3]} 39. Qxb5 {[%clk 0:00:11.1]} 39... Ne6 {[%clk
0:00:28.1]} 40. Kg2 {[%clk 0:00:07.4]} 40... Rc8 {[%clk 0:00:22.3]} 41. c6
{[%clk 0:00:07.6]} 41... Nc5 {[%clk 0:00:17.5]} 42. Re1 {[%clk 0:00:04.5]} 42...
Nxe4 {[%clk 0:00:17]} 43. Rxe4 {[%clk 0:00:05.4]} 43... Qe6 {[%clk 0:00:16]} 44.
Bxe5 {[%clk 0:00:05.1]} 44... Bxe5 {[%clk 0:00:13.6]} 45. Rxe5 {[%clk 0:00:06]}
45... Qxc6 {[%clk 0:00:13.7]} 46. Qxc6 {[%clk 0:00:06.4]} 46... Rxc6 {[%clk
0:00:14.6]} 47. Re4 {[%clk 0:00:06.4]} 47... Kg7 {[%clk 0:00:14.8]} 48. Kg3
{[%clk 0:00:07]} 48... g5 {[%clk 0:00:14.8]} 49. Ra4 {[%clk 0:00:07.4]} 49...
Kg6 {[%clk 0:00:14.3]} 50. h4 {[%clk 0:00:08]} 50... f6 {[%clk 0:00:14.3]} 51.
hxg5 {[%clk 0:00:08.3]} 51... fxg5 {[%clk 0:00:14.9]} 52. Rg4 {[%clk 0:00:09.2]}
52... Kf5 {[%clk 0:00:14.4]} 53. Ra4 {[%clk 0:00:09.8]} 53... Rc5 {[%clk
0:00:14.7]} 54. Re4 {[%clk 0:00:09.5]} 54... Rd5 {[%clk 0:00:14.5]} 55. Rg4
{[%clk 0:00:10.1]} 55... Rd1 {[%clk 0:00:13.6]} 56. Re4 {[%clk 0:00:11]} 56...
Rg1+ {[%clk 0:00:13.6]} 57. Kf2 {[%clk 0:00:10.9]} 57... Rh1 {[%clk 0:00:13.8]}
58. Kg2 {[%clk 0:00:10.8]} 58... Ra1 {[%clk 0:00:13.2]} 59. Rb4 {[%clk 0:00:11]}
59... Ra3 {[%clk 0:00:13]} 60. Rb5+ {[%clk 0:00:09.9]} 60... Kf4 {[%clk
0:00:13.4]} 61. Rb4+ {[%clk 0:00:10.5]} 61... Kf5 {[%clk 0:00:13.7]} 62. Kg3
{[%clk 0:00:11.4]} 62... Ra5 {[%clk 0:00:12.2]} 63. Rg4 {[%clk 0:00:12]} 63...
Rb5 {[%clk 0:00:11.6]} 64. Re4 {[%clk 0:00:12.9]} 64... Rc5 {[%clk 0:00:11.2]}
65. Rg4 {[%clk 0:00:11.4]} 65... Re5 {[%clk 0:00:11.3]} 66. Re4 {[%clk
0:00:10.9]} 66... Rd5 {[%clk 0:00:08.1]} 67. Rg4 {[%clk 0:00:10.9]} 67... Rd3
{[%clk 0:00:08.2]} 68. Re4 {[%clk 0:00:11.8]} 68... Kg6 {[%clk 0:00:08.2]} 69.
Rg4 {[%clk 0:00:12.7]} 69... Kh5 {[%clk 0:00:08.5]} 70. Re4 {[%clk 0:00:13.6]}
70... Rd1 {[%clk 0:00:08.4]} 71. Re8 {[%clk 0:00:13.9]} 71... Rg1+ {[%clk
0:00:08.3]} 72. Kf2 {[%clk 0:00:14.4]} 72... Ra1 {[%clk 0:00:07.7]} 73. Rg8
{[%clk 0:00:13.7]} 73... Ra3 {[%clk 0:00:05.8]} 74. Kg3 {[%clk 0:00:14.2]} 74...
Ra4 {[%clk 0:00:06.1]} 75. Rg7 {[%clk 0:00:13.3]} 75... Kh6 {[%clk 0:00:06.2]}
76. Rc7 {[%clk 0:00:12.9]} 76... Ra6 {[%clk 0:00:06.3]} 77. Rc4 {[%clk
0:00:11.8]} 77... Rf6 {[%clk 0:00:06.7]} 78. Kg4 {[%clk 0:00:11.6]} 78... Kg6
{[%clk 0:00:07]} 79. Re4 {[%clk 0:00:12.2]} 79... Rd6 {[%clk 0:00:06.1]} 80. Ra4
{[%clk 0:00:11.6]} 80... Rc6 {[%clk 0:00:05.5]} 81. Rb4 {[%clk 0:00:11.8]} 81...
Rd6 {[%clk 0:00:05.6]} 82. Rc4 {[%clk 0:00:11.4]} 82... Re6 {[%clk 0:00:05.7]}
83. Rd4 {[%clk 0:00:11.7]} 83... Rf6 {[%clk 0:00:05.9]} 84. Re4 {[%clk
0:00:11.5]} 84... Rd6 {[%clk 0:00:06.3]} 85. Re5 {[%clk 0:00:11.8]} 85... Rd4+
{[%clk 0:00:06]} 86. Kg3 {[%clk 0:00:11.7]} 86... Kf6 {[%clk 0:00:06.4]} 87. Ra5
{[%clk 0:00:11.8]} 87... Rf4 {[%clk 0:00:06.5]} 88. Ra6+ {[%clk 0:00:09.5]}
88... Kf5 {[%clk 0:00:06.6]} 89. Rb6 {[%clk 0:00:10.4]} 89... Ke5 {[%clk
0:00:05.9]} 90. Rb5+ {[%clk 0:00:07.9]} 90... Kf6 {[%clk 0:00:05.9]} 91. Rb6+
{[%clk 0:00:08.8]} 91... Kf5 {[%clk 0:00:06.3]} 92. Rb5+ {[%clk 0:00:09.7]}
92... Kf6 {[%clk 0:00:06.2]} 93. Rb6+ {[%clk 0:00:10.6]} 93... Kf5 {[%clk
0:00:06.5]} 94. Rb5+ {[%clk 0:00:11.5]} 94... Kf6 {[%clk 0:00:06.7]} 1/2-1/2